fUSD/lending_fUSD_20260602
["ID","MTS","AMOUNT","RATE_DAILY","PERIOD"]
[423732088,1780345840000,-36.39324164,0.00013698,2]
[423732094,1780345840000,-463.60675836,0.00013698,2]
[423732149,1780345843000,-130.26675836,0.00013699,2]
[423732150,1780345843000,-328.44168911,0.00013699,2]
[423732190,1780345845000,-3398.18,0.00013698,2]
[423732191,1780345845000,-61.40831089,0.00013699,2]
[423732192,1780345845000,-200.0,0.00013699,2]
[423732193,1780345845000,-194.01305832,0.00013699,2]
[423732235,1780345846000,-151.0,0.00013699,2]
[423732242,1780345846000,-439.5174702,0.00013744,2]
[423732241,1780345846000,-150.0,0.00013737,2]
[423732236,1780345846000,-151.0,0.00013699,2]
[423732237,1780345846000,-279.960539,0.00013699,2]
[423732239,1780345846000,-150.0,0.00013724,2]
[423732226,1780345846000,-151.0,0.00013699,2]
[423732233,1780345846000,-151.0,0.00013699,2]
[423732238,1780345846000,-150.0,0.00013702,2]
[423732232,1780345846000,-151.0,0.00013699,2]
[423732228,1780345846000,-151.0,0.00013699,2]
[423732227,1780345846000,-151.0,0.00013699,2]
[423732225,1780345846000,-151.0,0.00013699,2]
[423732234,1780345846000,-151.0,0.00013699,2]
[423732243,1780345846000,-150.0,0.00013779,2]
[423732251,1780345846000,-500.0,0.00013787,2]
[423732240,1780345846000,-150.0,0.00013737,2]
[423732246,1780345846000,-500.0,0.00013787,2]
[423732256,1780345846000,-278.47102687,0.00013787,2]
[423732258,1780345846000,-500.0,0.00013788,2]
[423732257,1780345846000,-150.0,0.00013787,2]
[423732247,1780345846000,-427.78099053,0.00013787,2]
[423732249,1780345846000,-500.0,0.00013787,2]
[423732245,1780345846000,-500.0,0.00013787,2]
[423732248,1780345846000,-500.0,0.00013787,2]
[423732250,1780345846000,-301.68399554,0.00013787,2]
[423732254,1780345846000,-500.0,0.00013787,2]
[423732252,1780345846000,-500.0,0.00013787,2]
[423732255,1780345846000,-500.0,0.00013787,2]
[423732221,1780345846000,-151.0,0.00013699,2]
[423732244,1780345846000,-154.93,0.00013785,2]
[423732222,1780345846000,-151.0,0.00013699,2]
[423732199,1780345846000,-151.0,0.00013699,2]
[423732223,1780345846000,-151.0,0.00013699,2]
[423732202,1780345846000,-151.0,0.00013699,2]
[423732201,1780345846000,-151.0,0.00013699,2]
[423732195,1780345846000,-151.0,0.00013699,2]
[423732253,1780345846000,-500.0,0.00013787,2]
[423732197,1780345846000,-151.0,0.00013699,2]
[423732200,1780345846000,-151.0,0.00013699,2]
[423732194,1780345846000,-151.0,0.00013699,2]
[423732196,1780345846000,-151.0,0.00013699,2]
[423732198,1780345846000,-151.0,0.00013699,2]
[423732203,1780345846000,-151.0,0.00013699,2]
[423732206,1780345846000,-151.0,0.00013699,2]
[423732208,1780345846000,-151.0,0.00013699,2]
[423732209,1780345846000,-151.0,0.00013699,2]
[423732212,1780345846000,-151.0,0.00013699,2]
[423732219,1780345846000,-151.0,0.00013699,2]
[423732205,1780345846000,-151.0,0.00013699,2]
[423732211,1780345846000,-151.0,0.00013699,2]
[423732213,1780345846000,-151.0,0.00013699,2]
[423732210,1780345846000,-151.0,0.00013699,2]
[423732215,1780345846000,-151.0,0.00013699,2]
[423732216,1780345846000,-151.0,0.00013699,2]
[423732214,1780345846000,-151.0,0.00013699,2]
[423732204,1780345846000,-151.0,0.00013699,2]
[423732217,1780345846000,-151.0,0.00013699,2]
[423732218,1780345846000,-151.0,0.00013699,2]
[423732224,1780345846000,-151.0,0.00013699,2]
[423732229,1780345846000,-151.0,0.00013699,2]
[423732220,1780345846000,-151.0,0.00013699,2]
[423732231,1780345846000,-151.0,0.00013699,2]
[423732230,1780345846000,-151.0,0.00013699,2]
[423732207,1780345846000,-151.0,0.00013699,2]
[423732259,1780345846000,-502.83414164,0.00013788,2]
[423732260,1780345846000,-500.0,0.00013788,2]
[423732264,1780345846000,-500.0,0.00013788,2]
[423732310,1780345846000,-446.0,0.00013788,2]
[423732308,1780345846000,-446.0,0.00013788,2]
[423732312,1780345846000,-446.0,0.00013788,2]
[423732322,1780345846000,-446.0,0.00013788,2]
[423732323,1780345846000,-446.0,0.00013788,2]
[423732324,1780345846000,-446.0,0.00013788,2]
[423732311,1780345846000,-446.0,0.00013788,2]
[423732313,1780345846000,-446.0,0.00013788,2]
[423732314,1780345846000,-446.0,0.00013788,2]
[423732320,1780345846000,-446.0,0.00013788,2]
[423732316,1780345846000,-446.0,0.00013788,2]
[423732321,1780345846000,-446.0,0.00013788,2]
[423732317,1780345846000,-446.0,0.00013788,2]
[423732319,1780345846000,-446.0,0.00013788,2]
[423732307,1780345846000,-500.0,0.00013788,2]
[423732318,1780345846000,-446.0,0.00013788,2]
[423732326,1780345846000,-446.0,0.00013788,2]
[423732335,1780345846000,-500.0,0.00013788,2]
[423732336,1780345846000,-585.0,0.00013788,2]
[423732329,1780345846000,-585.0,0.00013788,2]
[423732334,1780345846000,-585.0,0.00013788,2]
[423732325,1780345846000,-446.0,0.00013788,2]
[423732327,1780345846000,-460.0,0.00013788,2]
[423732337,1780345846000,-500.0,0.00013788,2]
[423732330,1780345846000,-585.0,0.00013788,2]
[423732331,1780345846000,-585.0,0.00013788,2]
[423732332,1780345846000,-585.0,0.00013788,2]
[423732333,1780345846000,-500.0,0.00013788,2]
[423732339,1780345846000,-500.0,0.00013788,2]
[423732338,1780345846000,-585.0,0.00013788,2]
[423732315,1780345846000,-446.0,0.00013788,2]
[423732306,1780345846000,-210.60640966,0.00013788,2]
[423732328,1780345846000,-585.0,0.00013788,2]
[423732309,1780345846000,-162.97877955,0.00013788,2]
[423732262,1780345846000,-500.0,0.00013788,2]
[423732305,1780345846000,-500.0,0.00013788,2]
[423732261,1780345846000,-500.0,0.00013788,2]
[423732271,1780345846000,-500.0,0.00013788,2]
[423732263,1780345846000,-500.0,0.00013788,2]
[423732273,1780345846000,-500.0,0.00013788,2]
[423732275,1780345846000,-500.0,0.00013788,2]
[423732267,1780345846000,-500.0,0.00013788,2]
[423732269,1780345846000,-500.0,0.00013788,2]
[423732277,1780345846000,-500.0,0.00013788,2]
[423732279,1780345846000,-500.0,0.00013788,2]
[423732292,1780345846000,-500.0,0.00013788,2]
[423732293,1780345846000,-500.0,0.00013788,2]
[423732294,1780345846000,-446.0,0.00013788,2]
[423732295,1780345846000,-500.0,0.00013788,2]
[423732265,1780345846000,-500.0,0.00013788,2]
[423732297,1780345846000,-446.0,0.00013788,2]
[423732296,1780345846000,-500.0,0.00013788,2]
[423732303,1780345846000,-500.0,0.00013788,2]
[423732302,1780345846000,-500.0,0.00013788,2]
[423732301,1780345846000,-446.0,0.00013788,2]
[423732300,1780345846000,-500.0,0.00013788,2]
[423732299,1780345846000,-500.0,0.00013788,2]
[423732304,1780345846000,-446.0,0.00013788,2]
[423732290,1780345846000,-500.0,0.00013788,2]
[423732298,1780345846000,-245.69706371,0.00013788,2]
[423732288,1780345846000,-500.0,0.00013788,2]
[423732283,1780345846000,-500.0,0.00013788,2]
[423732281,1780345846000,-500.0,0.00013788,2]
[423732291,1780345846000,-446.0,0.00013788,2]
[423732286,1780345846000,-408.67132594,0.00013788,2]
[423732372,1780345847000,-585.0,0.00013788,2]
[423732368,1780345847000,-500.0,0.00013788,2]
[423732369,1780345847000,-500.0,0.00013788,2]
[423732370,1780345847000,-500.0,0.00013788,2]
[423732375,1780345847000,-500.0,0.00013788,2]
[423732377,1780345847000,-500.0,0.00013788,2]
[423732386,1780345847000,-500.0,0.00013788,2]
[423732376,1780345847000,-1080.0,0.00013788,2]
[423732378,1780345847000,-500.0,0.00013788,2]
[423732387,1780345847000,-500.0,0.00013788,2]
[423732371,1780345847000,-1080.0,0.00013788,2]
[423732380,1780345847000,-1080.0,0.00013788,2]
[423732379,1780345847000,-500.0,0.00013788,2]
[423732385,1780345847000,-500.0,0.00013788,2]
[423732383,1780345847000,-500.0,0.00013788,2]
[423732381,1780345847000,-500.0,0.00013788,2]
[423732384,1780345847000,-1080.0,0.00013788,2]
[423732389,1780345847000,-500.0,0.00013788,2]
[423732391,1780345847000,-1080.0,0.00013788,2]
[423732400,1780345847000,-500.0,0.00013788,2]
[423732390,1780345847000,-500.0,0.00013788,2]
[423732399,1780345847000,-500.0,0.00013788,2]
[423732388,1780345847000,-500.0,0.00013788,2]
[423732373,1780345847000,-500.0,0.00013788,2]
[423732392,1780345847000,-389.46873306,0.00013788,2]
[423732382,1780345847000,-500.0,0.00013788,2]
[423732363,1780345847000,-1080.0,0.00013788,2]
[423732354,1780345847000,-585.0,0.00013788,2]
[423732365,1780345847000,-1080.0,0.00013788,2]
[423732397,1780345847000,-500.0,0.00013788,2]
[423732349,1780345847000,-585.0,0.00013788,2]
[423732344,1780345847000,-1080.0,0.00013788,2]
[423732341,1780345847000,-1080.0,0.00013788,2]
[423732342,1780345847000,-500.0,0.00013788,2]
[423732340,1780345847000,-585.0,0.00013788,2]
[423732343,1780345847000,-585.0,0.00013788,2]
[423732347,1780345847000,-585.0,0.00013788,2]
[423732348,1780345847000,-1080.0,0.00013788,2]
[423732345,1780345847000,-500.0,0.00013788,2]
[423732346,1780345847000,-500.0,0.00013788,2]
[423732350,1780345847000,-400.0082348,0.00013788,2]
[423732367,1780345847000,-1080.0,0.00013788,2]
[423732352,1780345847000,-585.0,0.00013788,2]
[423732355,1780345847000,-500.0,0.00013788,2]
[423732357,1780345847000,-585.0,0.00013788,2]
[423732356,1780345847000,-1080.0,0.00013788,2]
[423732358,1780345847000,-500.0,0.00013788,2]
[423732359,1780345847000,-1080.0,0.00013788,2]
[423732360,1780345847000,-1080.0,0.00013788,2]
[423732362,1780345847000,-585.0,0.00013788,2]
[423732351,1780345847000,-1080.0,0.00013788,2]
[423732361,1780345847000,-500.0,0.00013788,2]
[423732364,1780345847000,-500.0,0.00013788,2]
[423732374,1780345847000,-500.0,0.00013788,2]
[423732366,1780345847000,-500.0,0.00013788,2]
[423732353,1780345847000,-1080.0,0.00013788,2]
[423732393,1780345847000,-500.0,0.00013788,2]
[423732419,1780345847000,-500.0,0.00013788,2]
[423732398,1780345847000,-1080.0,0.00013788,2]
[423732430,1780345847000,-150.0,0.00013788,2]
[423732432,1780345847000,-150.0,0.00013788,2]
[423732427,1780345847000,-506.0,0.00013788,2]
[423732431,1780345847000,-150.0,0.00013788,2]
[423732433,1780345847000,-200.0,0.00013788,2]
[423732434,1780345847000,-150.0,0.00013788,2]
[423732435,1780345847000,-150.0,0.00013788,2]
[423732436,1780345847000,-250.0,0.00013788,2]
[423732438,1780345847000,-150.0,0.00013788,2]
[423732439,1780345847000,-150.0,0.00013788,2]
[423732441,1780345847000,-150.0,0.00013788,2]
[423732442,1780345847000,-247.86684498,0.00013788,2]
[423732443,1780345847000,-150.0,0.00013788,2]
[423732444,1780345847000,-150.0,0.00013788,2]
[423732446,1780345847000,-150.0,0.00013788,2]
[423732445,1780345847000,-150.0,0.00013788,2]
[423732447,1780345847000,-150.0,0.00013788,2]
[423732449,1780345847000,-150.0,0.00013788,2]
[423732448,1780345847000,-250.0,0.00013788,2]
[423732451,1780345847000,-500.0,0.00013788,2]
[423732452,1780345847000,-500.0,0.00013788,2]
[423732450,1780345847000,-500.0,0.00013788,2]
[423732453,1780345847000,-212.24079347,0.00013788,2]
[423732454,1780345847000,-500.0,0.00013788,2]
[423732395,1780345847000,-500.0,0.00013788,2]
[423732428,1780345847000,-150.0,0.00013788,2]
[423732429,1780345847000,-150.0,0.00013788,2]
[423732440,1780345847000,-200.0,0.00013788,2]
[423732426,1780345847000,-500.0,0.00013788,2]
[423732394,1780345847000,-585.0,0.00013788,2]
[423732437,1780345847000,-150.0,0.00013788,2]
[423732401,1780345847000,-500.0,0.00013788,2]
[423732403,1780345847000,-585.0,0.00013788,2]
[423732402,1780345847000,-500.0,0.00013788,2]
[423732408,1780345847000,-585.0,0.00013788,2]
[423732404,1780345847000,-1080.0,0.00013788,2]
[423732405,1780345847000,-585.0,0.00013788,2]
[423732407,1780345847000,-1080.0,0.00013788,2]
[423732410,1780345847000,-1080.0,0.00013788,2]
[423732406,1780345847000,-1080.0,0.00013788,2]
[423732409,1780345847000,-1080.0,0.00013788,2]
[423732412,1780345847000,-585.0,0.00013788,2]
[423732396,1780345847000,-500.0,0.00013788,2]
[423732414,1780345847000,-585.0,0.00013788,2]
[423732411,1780345847000,-1080.0,0.00013788,2]
[423732416,1780345847000,-500.0,0.00013788,2]
[423732418,1780345847000,-500.0,0.00013788,2]
[423732417,1780345847000,-500.0,0.00013788,2]
[423732420,1780345847000,-500.0,0.00013788,2]
[423732415,1780345847000,-586.86310537,0.00013788,2]
[423732422,1780345847000,-500.0,0.00013788,2]
[423732413,1780345847000,-1100.76690432,0.00013788,2]
[423732425,1780345847000,-500.0,0.00013788,2]
[423732424,1780345847000,-500.0,0.00013788,2]
[423732423,1780345847000,-500.0,0.00013788,2]
[423732421,1780345847000,-164.0,0.00013788,2]
[423732493,1780345848000,-500.0,0.00013822,2]
[423732491,1780345848000,-500.0,0.00013822,2]
[423732498,1780345848000,-166.66,0.00013836,2]
[423732490,1780345848000,-500.0,0.00013822,2]
[423732487,1780345848000,-187.71,0.00013804,2]
[423732499,1780345848000,-150.0,0.00013862,2]
[423732489,1780345848000,-150.0,0.00013821,2]
[423732486,1780345848000,-150.0,0.00013803,2]
[423732492,1780345848000,-500.0,0.00013822,2]
[423732485,1780345848000,-500.0,0.00013788,2]
[423732488,1780345848000,-150.0,0.00013821,2]
[423732496,1780345848000,-31419.60625385,0.00013823,2]
[423732511,1780345848000,-166.66,0.00013973,2]
[423732497,1780345848000,-175.79043915,0.00013827,2]
[423732494,1780345848000,-500.0,0.00013822,2]
[423732501,1780345848000,-256.96697555,0.00013881,2]
[423732512,1780345848000,-150.0,0.00013987,2]
[423732500,1780345848000,-392.0,0.00013863,2]
[423732509,1780345848000,-31419.60625385,0.00013957,2]
[423732510,1780345848000,-150.0,0.00013961,2]
[423732503,1780345848000,-150.0,0.00013904,2]
[423732504,1780345848000,-255.6230449,0.00013914,2]
[423732502,1780345848000,-150.0,0.00013882,2]
[423732483,1780345848000,-500.0,0.00013788,2]
[423732495,1780345848000,-3398.18,0.00013822,2]
[423732484,1780345848000,-500.0,0.00013788,2]
[423732455,1780345848000,-150.0,0.00013788,2]
[423732482,1780345848000,-500.0,0.00013788,2]
[423732506,1780345848000,-288.884409,0.00013942,2]
[423732456,1780345848000,-150.0,0.00013788,2]
[423732457,1780345848000,-500.0,0.00013788,2]
[423732464,1780345848000,-150.0,0.00013788,2]
[423732465,1780345848000,-193.9489579,0.00013788,2]
[423732463,1780345848000,-500.0,0.00013788,2]
[423732459,1780345848000,-150.0,0.00013788,2]
[423732458,1780345848000,-150.0,0.00013788,2]
[423732462,1780345848000,-150.0,0.00013788,2]
[423732460,1780345848000,-500.0,0.00013788,2]
[423732461,1780345848000,-500.0,0.00013788,2]
[423732467,1780345848000,-150.0,0.00013788,2]
[423732481,1780345848000,-150.0,0.00013788,2]
[423732466,1780345848000,-161.08460741,0.00013788,2]
[423732468,1780345848000,-150.0,0.00013788,2]
[423732474,1780345848000,-500.0,0.00013788,2]
[423732470,1780345848000,-500.0,0.00013788,2]
[423732472,1780345848000,-500.0,0.00013788,2]
[423732476,1780345848000,-500.0,0.00013788,2]
[423732473,1780345848000,-500.0,0.00013788,2]
[423732471,1780345848000,-184.20302166,0.00013788,2]
[423732475,1780345848000,-500.0,0.00013788,2]
[423732477,1780345848000,-512.62058182,0.00013788,2]
[423732479,1780345848000,-500.0,0.00013788,2]
[423732478,1780345848000,-500.0,0.00013788,2]
[423732480,1780345848000,-500.0,0.00013788,2]
[423732469,1780345848000,-500.0,0.00013788,2]
[423732507,1780345848000,-150.0,0.00013946,2]
[423732524,1780345848000,-150.0,0.0001407,2]
[423732508,1780345848000,-500.0,0.00013956,2]
[423732546,1780345848000,-500.0,0.00014226,2]
[423732540,1780345848000,-184.487776,0.00014177,2]
[423732545,1780345848000,-500.0,0.00014226,2]
[423732547,1780345848000,-500.0,0.00014226,2]
[423732548,1780345848000,-500.0,0.00014226,2]
[423732549,1780345848000,-3398.18,0.00014226,2]
[423732551,1780345848000,-31419.60625385,0.00014227,2]
[423732554,1780345848000,-166.66,0.00014247,2]
[423732552,1780345848000,-150.0,0.00014237,2]
[423732553,1780345848000,-150.0,0.00014237,2]
[423732556,1780345848000,-150.0,0.00014279,2]
[423732555,1780345848000,-150.0,0.00014276,2]
[423732505,1780345848000,-150.0,0.00013916,2]
[423732557,1780345848000,-150.0,0.0001432,2]
[423732559,1780345848000,-97814.3744022,0.00014321,2]
[423732568,1780345848000,-500.0,0.00014403,2]
[423732558,1780345848000,-150.0,0.0001432,2]
[423732560,1780345848000,-150.0,0.00014344,2]
[423732563,1780345848000,-150.0,0.00014362,2]
[423732566,1780345848000,-10470.32760364,0.0001439,2]
[423732567,1780345848000,-1239.27804546,0.000144,2]
[423732564,1780345848000,-166.66,0.00014384,2]
[423732565,1780345848000,-150.0,0.00014387,2]
[423732562,1780345848000,-31419.60625385,0.00014361,2]
[423732561,1780345848000,-150.0,0.00014355,2]
[423732543,1780345848000,-150.0,0.00014195,2]
[423732542,1780345848000,-151.0,0.00014177,2]
[423732550,1780345848000,-1500.0,0.00014227,2]
[423732538,1780345848000,-184.487776,0.00014177,2]
[423732544,1780345848000,-150.0,0.00014198,2]
[423732514,1780345848000,-150.0,0.00013987,2]
[423732513,1780345848000,-150.0,0.00013987,2]
[423732516,1780345848000,-40182.55971291,0.0001399,2]
[423732515,1780345848000,-150.0,0.00013987,2]
[423732519,1780345848000,-1288.69,0.00014002,2]
[423732523,1780345848000,-2000.0,0.00014061,2]
[423732517,1780345848000,-250.0,0.00014,2]
[423732522,1780345848000,-150.0,0.0001404,2]
[423732521,1780345848000,-150.37268157,0.00014031,2]
[423732518,1780345848000,-1500.0,0.00014,2]
[423732527,1780345848000,-31419.60625385,0.00014092,2]
[423732535,1780345848000,-151.0,0.00014156,2]
[423732520,1780345848000,-150.0,0.00014029,2]
[423732526,1780345848000,-151.0,0.00014092,2]
[423732533,1780345848000,-150.0,0.00014154,2]
[423732541,1780345848000,-153.422563,0.00014177,2]
[423732536,1780345848000,-500.0,0.00014176,2]
[423732537,1780345848000,-184.487776,0.00014177,2]
[423732534,1780345848000,-150.0,0.00014154,2]
[423732531,1780345848000,-175.79043915,0.0001412,2]
[423732539,1780345848000,-184.487776,0.00014177,2]
[423732525,1780345848000,-150.0,0.00014087,2]
[423732529,1780345848000,-150.0,0.00014112,2]
[423732528,1780345848000,-166.66,0.0001411,2]
[423732530,1780345848000,-150.0,0.00014119,2]
[423732532,1780345848000,-150.0,0.0001413,2]
[423732582,1780345849000,-151.0,0.00014496,2]
[423732592,1780345849000,-999.99,0.00014504,2]
[423732583,1780345849000,-184.487776,0.00014496,2]
[423732588,1780345849000,-151.0,0.00014496,2]
[423732585,1780345849000,-184.487776,0.00014496,2]
[423732587,1780345849000,-151.0,0.00014496,2]
[423732593,1780345849000,-4999.99,0.00014504,2]
[423732584,1780345849000,-184.487776,0.00014496,2]
[423732595,1780345849000,-9999.99,0.00014504,2]
[423732596,1780345849000,-7724.44,0.00014504,2]
[423732598,1780345849000,-299.99,0.00014504,2]
[423732604,1780345849000,-5000.0,0.00014521,2]
[423732586,1780345849000,-184.487776,0.00014496,2]
[423732589,1780345849000,-31419.60625385,0.00014496,2]
[423732569,1780345849000,-150.0,0.00014404,2]
[423732590,1780345849000,-499.99,0.00014504,2]
[423732580,1780345849000,-150.0,0.00014487,2]
[423732581,1780345849000,-152.594755,0.00014496,2]
[423732579,1780345849000,-150.0,0.00014487,2]
[423732574,1780345849000,-350.0,0.0001445,2]
[423732576,1780345849000,-6788.26698882,0.00014477,2]
[423732578,1780345849000,-150.0,0.00014487,2]
[423732573,1780345849000,-1530.69863027,0.00014449,2]
[423732575,1780345849000,-1509.0,0.00014466,5]
[423732572,1780345849000,-150.0,0.00014445,2]
[423732570,1780345849000,-175.79043915,0.00014413,2]
[423732571,1780345849000,-150.0,0.00014434,2]
[423732597,1780345849000,-9999.99,0.00014504,2]
[423732591,1780345849000,-6404.91,0.00014504,2]
[423732594,1780345849000,-9999.99,0.00014504,2]
[423732577,1780345849000,-150.0,0.00014487,2]
[423732605,1780345849000,-150.0,0.00014528,2]
[423732630,1780345849000,-57987.45007493,0.00014633,2]
[423732629,1780345849000,-151.0,0.00014631,2]
[423732627,1780345849000,-31419.60625385,0.00014631,2]
[423732626,1780345849000,-500.0,0.0001463,2]
[423732628,1780345849000,-151.0,0.00014631,2]
[423732625,1780345849000,-1680.0,0.00014629,2]
[423732624,1780345849000,-5627.34779021,0.00014621,2]
[423732619,1780345849000,-500.0,0.0001462,2]
[423732621,1780345849000,-500.0,0.0001462,2]
[423732622,1780345849000,-3398.18,0.0001462,2]
[423732618,1780345849000,-500.0,0.0001462,2]
[423732620,1780345849000,-500.0,0.0001462,2]
[423732623,1780345849000,-9372.65220979,0.00014621,2]
[423732617,1780345849000,-150.0,0.00014612,2]
[423732606,1780345849000,-5951.48916419,0.00014529,2]
[423732616,1780345849000,-350.0,0.00014609,2]
[423732615,1780345849000,-24964.47960132,0.000146,2]
[423732601,1780345849000,-10249.86,0.00014504,2]
[423732600,1780345849000,-4116.62,0.00014504,2]
[423732603,1780345849000,-150.0,0.00014513,2]
[423732599,1780345849000,-150.99,0.00014504,2]
[423732608,1780345849000,-150.0,0.00014558,2]
[423732602,1780345849000,-6794.8,0.00014504,2]
[423732610,1780345849000,-5951.48916418,0.00014582,2]
[423732612,1780345849000,-359.1238354,0.00014593,2]
[423732611,1780345849000,-150.0,0.00014592,2]
[423732614,1780345849000,-886.69034143,0.000146,2]
[423732609,1780345849000,-150.0,0.0001457,2]
[423732613,1780345849000,-56270.6025856,0.000146,2]
[423732607,1780345849000,-359.12383542,0.00014531,2]
[423732643,1780345850000,-5121.40286974,0.00014667,2]
[423732642,1780345850000,-38837.27305032,0.00014667,2]
[423732647,1780345850000,-5951.48916418,0.00014688,2]
[423732650,1780345850000,-500.0,0.000147,2]
[423732648,1780345850000,-150.0,0.00014695,2]
[423732646,1780345850000,-150.0,0.00014687,2]
[423732651,1780345850000,-500.0,0.000147,2]
[423732645,1780345850000,-150.0,0.00014671,2]
[423732649,1780345850000,-19715.43047871,0.000147,2]
[423732641,1780345850000,-31893.34859825,0.00014667,2]
[423732633,1780345850000,-5951.48916418,0.00014635,2]
[423732640,1780345850000,-6269.74801002,0.00014667,2]
[423732638,1780345850000,-359.1238354,0.00014654,2]
[423732639,1780345850000,-5000.0,0.00014661,2]
[423732637,1780345850000,-150.0,0.00014653,2]
[423732634,1780345850000,-255.0,0.00014639,2]
[423732636,1780345850000,-150.0,0.00014653,2]
[423732653,1780345850000,-500.0,0.000147,2]
[423732635,1780345850000,-420.0,0.00014641,2]
[423732632,1780345850000,-12688.16768262,0.00014633,2]
[423732631,1780345850000,-11446.15477078,0.00014633,2]
[423732644,1780345850000,-350.0,0.00014667,2]
[423732661,1780345850000,-500.0,0.000147,2]
[423732662,1780345850000,-500.0,0.000147,2]
[423732654,1780345850000,-500.0,0.000147,2]
[423732678,1780345850000,-50666.4320769,0.00014733,2]
[423732676,1780345850000,-500.0,0.00014726,2]
[423732677,1780345850000,-1300.0,0.00014726,2]
[423732673,1780345850000,-151.0,0.000147,2]
[423732672,1780345850000,-82121.77252833,0.000147,2]
[423732671,1780345850000,-500.0,0.000147,2]
[423732667,1780345850000,-500.0,0.000147,2]
[423732665,1780345850000,-500.0,0.000147,2]
[423732669,1780345850000,-500.0,0.000147,2]
[423732666,1780345850000,-500.0,0.000147,2]
[423732668,1780345850000,-500.0,0.000147,2]
[423732670,1780345850000,-500.0,0.000147,2]
[423732674,1780345850000,-175.79043915,0.00014706,2]
[423732675,1780345850000,-359.1238354,0.00014716,2]
[423732664,1780345850000,-500.0,0.000147,2]
[423732659,1780345850000,-500.0,0.000147,2]
[423732656,1780345850000,-500.0,0.000147,2]
[423732652,1780345850000,-500.0,0.000147,2]
[423732658,1780345850000,-500.0,0.000147,2]
[423732660,1780345850000,-500.0,0.000147,2]
[423732657,1780345850000,-500.0,0.000147,2]
[423732655,1780345850000,-500.0,0.000147,2]
[423732663,1780345850000,-500.0,0.000147,2]
[423732680,1780345884000,500.0,0.0003013,120]
[423732683,1780346267000,500.0,0.0003013,120]
[423732685,1780346651000,500.0,0.0003013,120]
[423732687,1780346782000,166.9,0.00010091,2]
[423732688,1780346941000,2000.0,0.00030135,120]
[423732690,1780347030000,500.0,0.0003013,120]
[423732704,1780347032000,-162.05,0.00013013,2]
[423732698,1780347032000,-190.73,0.00012639,2]
[423732697,1780347032000,-2000.0,0.00012625,2]
[423732700,1780347032000,-821.75258065,0.00012693,2]
[423732699,1780347032000,-155.5,0.0001267,2]
[423732701,1780347032000,-19.44741935,0.00012693,2]
[423732705,1780347032000,-166.09,0.00013116,2]
[423732702,1780347032000,-500.0,0.00012959,2]
[423732703,1780347032000,-187.25,0.00012979,2]
[423732707,1780347032000,-1200.0,0.00013199,2]
[423732714,1780347032000,-772.24769088,0.00013201,2]
[423732709,1780347032000,-24999.99,0.000132,2]
[423732711,1780347032000,-9999.99,0.00013201,2]
[423732710,1780347032000,-150.99,0.000132,2]